fUSD/lending_fUSD_20250405
["ID","MTS","AMOUNT","RATE_DAILY","PERIOD"]
[357210049,1743895848613,-515.69807666,0.00030409,2]
[357210050,1743895848622,-516.65935313,0.00030409,2]
[357210051,1743895848633,-500.0,0.00030409,2]
[357210052,1743895848745,-500.0,0.00030409,2]
[357210053,1743895848775,-564.83527558,0.00030409,2]
[357210054,1743895848785,-533.503136,0.00030409,2]
[357210055,1743895848794,-527.12255597,0.00030409,2]
[357210056,1743895848804,-507.59773656,0.00030409,2]
[357210057,1743895848813,-506.96737864,0.00030409,2]
[357210058,1743895848822,-500.0,0.00030409,2]
[357210059,1743895848832,-500.0,0.00030409,2]
[357210060,1743895848842,-503.99585176,0.00030409,2]
[357210061,1743895848851,-500.0,0.00030409,2]
[357210062,1743895848861,-500.0,0.00030409,2]
[357210063,1743895848871,-499.99955896,0.00030409,2]
[357210064,1743895848880,-306.86459551,0.00030409,2]
[357210065,1743895848890,-500.0,0.00030409,2]
[357210066,1743895848899,-500.0,0.00030409,2]
[357210067,1743895848909,-500.0,0.00030409,2]
[357210068,1743895848918,-500.0,0.00030409,2]
[357210069,1743895848928,-500.0,0.00030409,2]
[357210070,1743895848938,-518.82016548,0.00030409,2]
[357210071,1743895848948,-500.0,0.00030409,2]
[357210072,1743895848957,-507.78592355,0.00030409,2]
[357210073,1743895848967,-500.0,0.00030409,2]
[357210074,1743895848977,-500.0,0.00030409,2]
[357210075,1743895848987,-500.0,0.00030409,2]
[357210076,1743895848997,-500.0,0.00030409,2]
[357210077,1743895849006,-500.0,0.00030409,2]
[357210078,1743895849015,-500.0,0.00030409,2]
[357210079,1743895849025,-500.0,0.00030409,2]
[357210080,1743895849035,-527.03868151,0.00030409,2]
[357210081,1743895849045,-581.77918273,0.00030409,2]
[357210082,1743895849055,-500.0,0.00030409,2]
[357210083,1743895849065,-603.75029266,0.00030409,2]
[357210084,1743895849074,-500.0,0.00030409,2]
[357210085,1743895849084,-306.09959648,0.00030409,2]
[357210086,1743895849094,-624.84907687,0.00030409,2]
[357210087,1743895849103,-237.67416184,0.00030409,2]
[357210088,1743895849113,-500.0,0.00030409,2]
[357210089,1743895849123,-500.0,0.00030409,2]
[357210090,1743895849133,-500.0,0.00030409,2]
[357210091,1743895849143,-509.53479693,0.00030409,2]
[357210092,1743895849152,-508.25682787,0.00030409,2]
[357210093,1743895849161,-528.75231657,0.00030409,2]
[357210094,1743895849171,-500.0,0.00030409,2]
[357210095,1743895849181,-514.32516263,0.00030409,2]
[357210096,1743895849190,-500.0,0.00030409,2]
[357210097,1743895849200,-522.29143406,0.00030409,2]
[357210098,1743895849210,-534.66522363,0.00030409,2]
[357210099,1743895849220,-500.0,0.00030409,2]
[357210100,1743895849230,-202.59416305,0.00030409,2]
[357210101,1743895849239,-500.0,0.00030409,2]
[357210102,1743895849249,-505.65859818,0.00030409,2]
[357210103,1743895849258,-500.0,0.00030409,2]
[357210104,1743895849268,-538.3764249,0.00030409,2]
[357210105,1743895849277,-521.64653678,0.00030409,2]
[357210106,1743895849287,-517.21842184,0.00030409,2]
[357210107,1743895849296,-521.86781208,0.00030409,2]
[357210108,1743895849306,-506.35396921,0.00030409,2]
[357210109,1743895849315,-500.0,0.00030409,2]
[357210110,1743895849324,-527.41865298,0.00030409,2]
[357210111,1743895849334,-507.55786396,0.00030409,2]
[357210112,1743895849343,-512.85234635,0.00030409,2]
[357210113,1743895849353,-506.3536027,0.00030409,2]
[357210114,1743895849362,-2000.0,0.00030409,2]
[357210115,1743895849371,-520.1256991,0.00030409,2]
[357210116,1743895849381,-508.65534565,0.00030409,2]
[357210117,1743895849391,-500.0,0.00030409,2]
[357210118,1743895849401,-507.10574569,0.00030409,2]
[357210119,1743895849410,-509.0912182,0.00030409,2]
[357210120,1743895849419,-502.95771583,0.00030409,2]
[357210121,1743895849429,-509.17372245,0.00030409,2]
[357210122,1743895849438,-326.50789542,0.00030409,2]
[357210123,1743895849447,-509.27504116,0.00030409,2]
[357210124,1743895849456,-504.34057945,0.00030409,2]
[357210125,1743895849470,-511.41685541,0.00030409,2]
[357210126,1743895849479,-500.0,0.00030409,2]
[357210127,1743895849488,-526.80877116,0.00030409,2]
[357210128,1743895849498,-500.0,0.00030409,2]
[357210129,1743895849509,-500.0,0.00030409,2]
[357210130,1743895849519,-502.57859161,0.00030409,2]
[357210131,1743895849529,-500.0,0.00030409,2]
[357210132,1743895849539,-532.5027619,0.00030409,2]
[357210133,1743895849549,-513.90548066,0.00030409,2]
[357210134,1743895849558,-525.84396597,0.00030409,2]
[357210135,1743895849567,-500.0,0.00030409,2]
[357210136,1743895849577,-506.42389316,0.00030409,2]
[357210137,1743895849586,-500.0,0.00030409,2]
[357210138,1743895849595,-508.38329292,0.00030409,2]
[357210139,1743895849604,-503.90863369,0.00030409,2]
[357210140,1743895849614,-500.0,0.00030409,2]
[357210141,1743895849623,-513.08928517,0.00030409,2]
[357210142,1743895849635,-500.0,0.00030409,2]
[357210143,1743895849645,-504.05358389,0.00030409,2]
[357210144,1743895849654,-500.0,0.00030409,2]
[357210145,1743895849664,-500.0,0.00030409,2]
[357210146,1743895849674,-500.0,0.00030409,2]
[357210147,1743895849684,-187.74868166,0.00030409,2]
[357210148,1743895849693,-500.0,0.00030409,2]
[357210149,1743895849703,-516.24510163,0.00030409,2]
[357210150,1743895849712,-500.0,0.00030409,2]
[357210151,1743895849721,-568.41395481,0.00030409,2]
[357210152,1743895849731,-510.28333547,0.00030409,2]
[357210153,1743895849740,-503.69578999,0.00030409,2]
[357210154,1743895849748,-508.84452227,0.00030409,2]
[357210155,1743895849758,-525.94719198,0.00030409,2]
[357210156,1743895849768,-500.0,0.00030409,2]
[357210157,1743895849776,-313.98163624,0.00030409,2]
[357210158,1743895849786,-337.65257452,0.00030409,2]
[357210159,1743895849795,-500.0,0.00030409,2]
[357210160,1743895849804,-510.55572545,0.00030409,2]
[357210161,1743895849813,-503.77912055,0.00030409,2]
[357210162,1743895849822,-512.43385085,0.00030409,2]
[357210163,1743895849832,-520.92412871,0.00030409,2]
[357210164,1743895849844,-500.0,0.00030409,2]
[357210165,1743895849854,-507.01204495,0.00030409,2]
[357210166,1743895849864,-515.2485344,0.00030409,2]
[357210167,1743895849874,-324.67376414,0.00030409,2]
[357210168,1743895849883,-522.46659155,0.00030409,2]
[357210169,1743895849893,-511.11062083,0.00030409,2]
[357210170,1743895849902,-258.14474063,0.00030409,2]
[357210171,1743895849911,-528.67203429,0.00030409,2]
[357210172,1743895849921,-520.10098081,0.00030409,2]
[357210173,1743895849930,-577.09837748,0.00030409,2]
[357210174,1743895849940,-519.87175156,0.00030409,2]
[357210175,1743895849949,-515.2162168,0.00030409,2]
[357210176,1743895849958,-500.0,0.00030409,2]
[357210177,1743895849968,-533.5738539,0.00030409,2]
[357210178,1743895849977,-513.19916514,0.00030409,2]
[357210179,1743895849987,-515.1174909,0.00030409,2]
[357210180,1743895849996,-517.90524951,0.00030409,2]
[357210181,1743895850005,-503.80937387,0.00030409,2]
[357210182,1743895850015,-500.0,0.00030409,2]
[357210183,1743895850024,-494.0,0.00030409,2]
[357210184,1743895850034,-513.52402015,0.00030409,2]
[357210185,1743895850044,-506.69847869,0.00030409,2]
[357210186,1743895850053,-531.51067316,0.00030409,2]
[357210187,1743895850063,-513.19253225,0.00030409,2]
[357210188,1743895850072,-508.81735139,0.00030409,2]
[357210189,1743895850082,-528.8233558,0.00030409,2]
[357210190,1743895850091,-525.46999234,0.00030409,2]
[357210191,1743895850100,-625.16203822,0.00030409,2]
[357210192,1743895850110,-509.24998448,0.00030409,2]
[357210193,1743895850119,-518.65407796,0.00030409,2]
[357210194,1743895850128,-507.21757606,0.00030409,2]
[357210195,1743895850138,-517.77717569,0.00030409,2]
[357210196,1743895850147,-521.3516349,0.00030409,2]
[357210197,1743895850156,-508.45618544,0.00030409,2]
[357210198,1743895850166,-500.0,0.00030409,2]
[357210199,1743895850175,-518.98363857,0.00030409,2]
[357210200,1743895850185,-521.34806053,0.00030409,2]
[357210201,1743895850195,-521.68903746,0.00030409,2]
[357210202,1743895850204,-502.34793621,0.00030409,2]
[357210203,1743895850214,-513.06634644,0.00030409,2]
[357210204,1743895850223,-522.58652662,0.00030409,2]
[357210205,1743895850231,-500.0,0.00030409,2]
[357210206,1743895850241,-520.85745833,0.00030409,2]
[357210207,1743895850250,-512.3323488,0.00030409,2]
[357210208,1743895850259,-510.5081526,0.00030409,2]
[357210209,1743895850269,-527.6968441,0.00030409,2]
[357210210,1743895850278,-510.0486867,0.00030409,2]
[357210211,1743895850287,-529.69339741,0.00030409,2]
[357210212,1743895850297,-512.10120459,0.00030409,2]
[357210213,1743895850306,-510.35941763,0.00030409,2]
[357210214,1743895850315,-500.0,0.00030409,2]
[357210215,1743895850325,-503.22547605,0.00030409,2]
[357210216,1743895850334,-516.5036726,0.00030409,2]
[357210217,1743895850343,-500.0,0.00030409,2]
[357210218,1743895850352,-517.95936593,0.00030409,2]
[357210219,1743895850362,-500.0,0.00030409,2]
[357210220,1743895850370,-500.0,0.00030409,2]
[357210221,1743895850380,-500.0,0.00030409,2]
[357210222,1743895850388,-500.0,0.00030409,2]
[357210223,1743895850398,-500.0,0.00030409,2]
[357210224,1743895850407,-508.16612048,0.00030409,2]
[357210225,1743895850416,-266.35560013,0.00030409,2]
[357210226,1743895850425,-508.28439278,0.00030409,2]
[357210227,1743895850435,-500.0,0.00030409,2]
[357210228,1743895850444,-500.0,0.00030409,2]
[357210229,1743895850453,-549.57163666,0.00030409,2]
[357210230,1743895850467,-500.0,0.00030409,2]
[357210231,1743895850476,-536.71142715,0.00030409,2]
[357210232,1743895850486,-508.24022279,0.00030409,2]
[357210233,1743895850496,-500.0,0.00030409,2]
[357210234,1743895850506,-508.08011087,0.00030409,2]
[357210235,1743895850516,-507.81346978,0.00030409,2]
[357210236,1743895850525,-511.56769437,0.00030409,2]
[357210237,1743895850536,-529.7596559,0.00030409,2]
[357210238,1743895850546,-500.0,0.00030409,2]
[357210239,1743895850556,-644.02114723,0.00030409,2]
[357210240,1743895850566,-500.0,0.00030409,2]
[357210241,1743895850575,-522.12636492,0.00030409,2]
[357210242,1743895850584,-541.07274743,0.00030409,2]
[357210243,1743895850593,-518.8021181,0.00030409,2]
[357210244,1743895850603,-528.91794588,0.00030409,2]
[357210245,1743895850613,-513.21988476,0.00030409,2]
[357210246,1743895850622,-500.0,0.00030409,2]
[357210247,1743895850632,-500.0,0.00030409,2]
[357210248,1743895850642,-519.89918623,0.00030409,2]
[357210249,1743895850651,-500.0,0.00030409,2]
[357210250,1743895850660,-516.91437585,0.00030409,2]
[357210251,1743895850669,-520.82207226,0.00030409,2]
[357210252,1743895850678,-153.68996381,0.00030409,2]
[357210253,1743895850688,-510.5200197,0.00030409,2]
[357210254,1743895850697,-511.63051385,0.00030409,2]
[357210255,1743895850707,-5118.78448625,0.00030409,2]
[357210256,1743895850716,-500.0,0.00030409,2]
[357210257,1743895850725,-555.91421778,0.00030409,2]
[357210258,1743895850735,-526.78276193,0.00030409,2]
[357210259,1743895850744,-508.37852574,0.00030409,2]
[357210260,1743895850754,-525.84150661,0.00030409,2]
[357210261,1743895850763,-419.91186277,0.00030409,2]
[357210262,1743895850772,-527.63993777,0.00030409,2]
[357210263,1743895850781,-519.49296212,0.00030409,2]
[357210264,1743895850791,-509.41021025,0.00030409,2]
[357210265,1743895850800,-504.38826734,0.00030409,2]
[357210266,1743895850810,-519.62145628,0.00030409,2]
[357210267,1743895850819,-500.0,0.00030409,2]
[357210268,1743895850828,-539.51556691,0.00030409,2]
[357210269,1743895850838,-510.65750852,0.00030409,2]
[357210270,1743895850847,-500.0,0.00030409,2]
[357210271,1743895850856,-513.71785263,0.00030409,2]
[357210272,1743895850866,-504.2529706,0.00030409,2]
[357210273,1743895850877,-575.75501639,0.00030409,2]
[357210274,1743895850887,-569.45218777,0.00030409,2]
[357210275,1743895850897,-528.25147061,0.00030409,2]
[357210276,1743895850906,-507.3694766,0.00030409,2]
[357210277,1743895850916,-514.65431111,0.00030409,2]
[357210278,1743895850925,-526.95907581,0.00030409,2]
[357210279,1743895850935,-500.0,0.00030409,2]
[357210280,1743895850944,-633.0988922,0.0003041,2]
[357210281,1743895850954,-500.0,0.0003041,2]
[357210282,1743895850964,-500.0,0.0003041,2]
[357210283,1743895850973,-500.0,0.0003041,2]
[357210284,1743895850982,-500.0,0.0003041,2]
[357210285,1743895850992,-500.0,0.0003041,2]
[357210286,1743895851001,-522.68218665,0.0003041,2]
[357210287,1743895851010,-500.0,0.0003041,2]
[357210288,1743895851020,-500.0,0.0003041,2]
[357210289,1743895851029,-500.0,0.0003041,2]
[357210290,1743895851039,-500.0,0.0003041,2]
[357210291,1743895851048,-380.04480564,0.0003041,2]
[357210292,1743895851058,-500.0,0.0003041,2]
[357210293,1743895851068,-500.0,0.0003041,2]
[357210294,1743895851077,-500.0,0.0003041,2]
[357210295,1743895851086,-555.05242474,0.0003041,2]
[357210296,1743895851096,-500.0,0.0003041,2]
[357210297,1743895851105,-537.00776936,0.0003041,2]
[357210298,1743895851114,-500.0,0.0003041,2]
[357210299,1743895851124,-550.0273946,0.0003041,2]
[357210300,1743895851133,-500.0,0.0003041,2]
[357210301,1743895851173,-500.0,0.0003041,2]
[357210302,1743895851183,-500.0,0.0003041,2]
[357210303,1743895851192,-500.0,0.0003041,2]
[357210304,1743895851202,-500.0,0.0003041,2]
[357210305,1743895851211,-500.0,0.0003041,2]
[357210306,1743895851220,-539.01184616,0.0003041,2]
[357210307,1743895851230,-569.57541885,0.0003041,2]
[357210308,1743895851239,-500.0,0.0003041,2]
[357210309,1743895851248,-500.0,0.0003041,2]
[357210310,1743895851257,-526.02740506,0.0003041,2]
[357210311,1743895851267,-500.0,0.0003041,2]
[357210312,1743895851276,-523.54471921,0.0003041,2]
[357210313,1743895851285,-571.47836137,0.0003041,2]
[357210314,1743895851294,-571.48575648,0.0003041,2]
[357210315,1743895851303,-500.0,0.0003041,2]
[357210316,1743895851312,-500.0,0.0003041,2]
[357210317,1743895851322,-500.0,0.0003041,2]
[357210318,1743895851331,-500.0,0.0003041,2]
[357210319,1743895851340,-500.0,0.0003041,2]
[357210320,1743895851350,-500.0,0.0003041,2]
[357210321,1743895851359,-533.44816009,0.0003041,2]
[357210322,1743895851368,-564.79204684,0.0003041,2]
[357210323,1743895851377,-500.0,0.0003041,2]
[357210324,1743895851386,-569.25774895,0.0003041,2]
[357210325,1743895851395,-500.0,0.0003041,2]
[357210326,1743895851404,-554.49272474,0.0003041,2]
[357210327,1743895851413,-500.46586554,0.0003041,2]
[357210328,1743895851422,-500.0,0.0003041,2]
[357210329,1743895851431,-507.50663678,0.0003041,2]
[357210330,1743895851440,-500.0,0.0003041,2]
[357210331,1743895851449,-507.22089665,0.0003041,2]
[357210332,1743895851459,-508.85877538,0.0003041,2]
[357210333,1743895851470,-500.0,0.0003041,2]
[357210334,1743895851480,-605.53865024,0.0003041,2]
[357210335,1743895851489,-500.0,0.0003041,2]
[357210336,1743895851498,-528.03561173,0.0003041,2]
[357210337,1743895851509,-563.70320774,0.0003041,2]
[357210338,1743895851518,-500.0,0.0003041,2]
[357210339,1743895851527,-500.0,0.0003041,2]
[357210340,1743895851538,-500.0,0.0003041,2]
[357210341,1743895851547,-500.0,0.0003041,2]
[357210342,1743895851556,-544.86595448,0.0003041,2]
[357210343,1743895851565,-500.0,0.0003041,2]
[357210344,1743895851574,-625.76362508,0.0003041,2]
[357210345,1743895851583,-597.29106974,0.0003041,2]
[357210346,1743895851592,-523.05281605,0.0003041,2]
[357210347,1743895851601,-518.20331983,0.0003041,2]
[357210348,1743895851610,-530.03073223,0.0003041,2]
[357210349,1743895851620,-500.0,0.0003041,2]
[357210350,1743895851632,-500.0,0.0003041,2]
[357210351,1743895851641,-514.30416142,0.0003041,2]
[357210352,1743895851650,-500.0,0.0003041,2]
[357210353,1743895851659,-500.0,0.0003041,2]
[357210354,1743895851668,-500.0,0.0003041,2]
[357210355,1743895851677,-573.57113718,0.0003041,2]
[357210356,1743895851686,-508.00856889,0.0003041,2]
[357210357,1743895851695,-500.0,0.0003041,2]
[357210358,1743895851704,-500.0,0.0003041,2]
[357210359,1743895851713,-504.87230279,0.0003041,2]
[357210360,1743895851722,-500.0,0.0003041,2]
[357210361,1743895851731,-500.0,0.0003041,2]
[357210362,1743895851740,-563.13093155,0.0003041,2]
[357210363,1743895851748,-500.0,0.0003041,2]
[357210364,1743895851757,-222.15025898,0.0003041,2]
[357210365,1743895851766,-500.0,0.0003041,2]
[357210366,1743895851775,-500.0,0.0003041,2]
[357210367,1743895851784,-500.0,0.0003041,2]
[357210368,1743895851794,-533.39130878,0.0003041,2]
[357210369,1743895851803,-505.33411635,0.0003041,2]
[357210370,1743895851812,-487.89332379,0.0003041,2]
[357210371,1743895851821,-598.99174338,0.0003041,2]
[357210372,1743895851830,-500.0,0.0003041,2]
[357210373,1743895851839,-500.0,0.0003041,2]
[357210374,1743895851848,-545.79863568,0.0003041,2]
[357210375,1743895851857,-500.0,0.0003041,2]
[357210376,1743895851866,-503.40854913,0.0003041,2]
[357210377,1743895851875,-528.40636854,0.0003041,2]
[357210378,1743895851884,-505.05583998,0.0003041,2]
[357210379,1743895851894,-523.57665987,0.0003041,2]
[357210380,1743895851903,-500.0,0.0003041,2]
[357210381,1743895851912,-512.44623562,0.0003041,2]
[357210382,1743895851922,-500.0,0.0003041,2]
[357210383,1743895851931,-511.51689646,0.0003041,2]
[357210384,1743895851940,-564.55869302,0.0003041,2]
[357210385,1743895851949,-575.68779003,0.0003041,2]
[357210386,1743895851958,-627.15160794,0.0003041,2]
[357210387,1743895851967,-637.09555296,0.0003041,2]
[357210388,1743895851976,-500.0,0.0003041,2]
[357210389,1743895851984,-519.11909326,0.0003041,2]
[357210390,1743895851993,-518.85925054,0.0003041,2]
[357210391,1743895852002,-543.02616865,0.0003041,2]
[357210392,1743895852012,-500.0,0.0003041,2]
[357210393,1743895852021,-500.0,0.0003041,2]
[357210394,1743895852030,-500.0,0.0003041,2]
[357210395,1743895852039,-500.0,0.0003041,2]
[357210396,1743895852048,-500.0,0.0003041,2]
[357210397,1743895852058,-500.0,0.0003041,2]
[357210398,1743895852067,-500.0,0.0003041,2]
[357210399,1743895852076,-500.0,0.0003041,2]
[357210400,1743895852086,-500.0,0.0003041,2]
[357210401,1743895852095,-410.82461319,0.0003041,2]
[357210402,1743895852104,-500.0,0.0003041,2]
[357210403,1743895852114,-536.57696602,0.0003041,2]
[357210404,1743895852123,-500.0,0.0003041,2]
[357210405,1743895852133,-534.3334082,0.0003041,2]
[357210406,1743895852142,-500.0,0.0003041,2]
[357210407,1743895852151,-500.0,0.0003041,2]
[357210408,1743895852161,-500.0,0.0003041,2]
[357210409,1743895852170,-500.0,0.0003041,2]
[357210410,1743895852180,-500.0,0.0003041,2]
[357210411,1743895852189,-500.0,0.0003041,2]
[357210412,1743895852198,-500.0,0.0003041,2]
[357210413,1743895852208,-500.0,0.0003041,2]
[357210414,1743895852218,-500.0,0.0003041,2]
[357210415,1743895852227,-500.0,0.0003041,2]
[357210416,1743895852236,-517.90870353,0.0003041,2]
[357210417,1743895852245,-500.0,0.0003041,2]
[357210418,1743895852255,-500.0,0.0003041,2]
[357210419,1743895852264,-500.0,0.0003041,2]
[357210420,1743895852273,-500.0,0.0003041,2]
[357210421,1743895852282,-500.0,0.0003041,2]
[357210422,1743895852291,-500.0,0.0003041,2]
[357210423,1743895852300,-561.9250399,0.0003041,2]
[357210424,1743895852310,-500.0,0.0003041,2]
[357210425,1743895852319,-572.79883715,0.0003041,2]
[357210426,1743895852328,-500.0,0.0003041,2]
[357210427,1743895852337,-498.22353115,0.0003041,2]
[357210428,1743895852346,-500.0,0.0003041,2]
[357210429,1743895852355,-500.0,0.0003041,2]
[357210430,1743895852364,-500.0,0.0003041,2]
[357210431,1743895852374,-500.0,0.0003041,2]
[357210432,1743895852383,-500.0,0.0003041,2]
[357210433,1743895852393,-500.0,0.0003041,2]
[357210434,1743895852403,-500.0,0.0003041,2]
[357210435,1743895852412,-576.48400846,0.0003041,2]
[357210436,1743895852421,-602.14942035,0.0003041,2]
[357210437,1743895852431,-584.28188745,0.0003041,2]
[357210438,1743895852440,-518.5123681,0.0003041,2]
[357210439,1743895852449,-570.62525489,0.0003041,2]
[357210440,1743895852460,-500.0,0.0003041,2]
[357210441,1743895852474,-500.0,0.0003041,2]
[357210442,1743895852484,-500.0,0.0003041,2]
[357210443,1743895852493,-511.73256012,0.0003041,2]
[357210444,1743895852503,-500.0,0.0003041,2]
[357210445,1743895852514,-500.0,0.0003041,2]
[357210446,1743895852523,-500.0,0.0003041,2]
[357210447,1743895852533,-561.65305819,0.0003041,2]
[357210448,1743895852543,-500.0,0.0003041,2]
[357210449,1743895852552,-500.0,0.0003041,2]
[357210450,1743895852562,-503.61324304,0.0003041,2]
[357210451,1743895852572,-500.0,0.0003041,2]
[357210452,1743895852581,-500.0,0.0003041,2]
[357210453,1743895852590,-500.0,0.0003041,2]
[357210454,1743895852599,-500.0,0.0003041,2]
[357210455,1743895852608,-500.0,0.0003041,2]
[357210456,1743895852618,-500.0,0.0003041,2]
[357210457,1743895852629,-500.0,0.0003041,2]
[357210458,1743895852639,-500.0,0.0003041,2]
[357210459,1743895852649,-500.0,0.0003041,2]
[357210460,1743895852659,-500.0,0.0003041,2]
[357210461,1743895852669,-500.0,0.0003041,2]
[357210462,1743895852678,-500.0,0.0003041,2]
[357210463,1743895852688,-1247.58,0.0003041,2]
[357210464,1743895852698,-500.0,0.0003041,2]
[357210465,1743895852712,-500.0,0.0003041,2]
[357210466,1743895852722,-500.0,0.0003041,2]
[357210467,1743895852731,-500.0,0.0003041,2]
[357210468,1743895852740,-500.0,0.0003041,2]
[357210469,1743895852749,-500.0,0.0003041,2]
[357210470,1743895852758,-500.0,0.0003041,2]
[357210471,1743895852768,-500.0,0.0003041,2]
[357210472,1743895852777,-500.0,0.0003041,2]
[357210473,1743895852787,-317.78016784,0.0003041,2]
[357210474,1743895852796,-500.0,0.0003041,2]
[357210475,1743895852806,-500.0,0.0003041,2]
[357210476,1743895852815,-217.37,0.0003041,2]
[357210477,1743895852824,-500.0,0.0003041,2]
[357210478,1743895852834,-621.22181743,0.0003041,2]
[357210479,1743895852847,-500.0,0.0003041,2]
[357210480,1743895852857,-500.0,0.0003041,2]
[357210481,1743895852866,-355.77,0.0003041,2]
[357210482,1743895852877,-500.0,0.0003041,2]
[357210483,1743895852887,-500.0,0.0003041,2]
[357210484,1743895852896,-358.73796158,0.0003041,2]
[357210485,1743895852906,-500.0,0.0003041,2]
[357210486,1743895852916,-500.0,0.0003041,2]
[357210487,1743895852926,-500.0,0.0003041,2]
[357210488,1743895852935,-500.0,0.0003041,2]
[357210489,1743895852945,-787.68,0.0003041,2]
[357210490,1743895852954,-500.0,0.0003041,2]
[357210491,1743895852964,-500.0,0.0003041,2]
[357210492,1743895852974,-285.10326964,0.0003041,2]
[357210493,1743895852984,-500.0,0.0003041,2]
[357210494,1743895852994,-805.65,0.0003041,2]
[357210495,1743895853004,-500.0,0.0003041,2]
[357210496,1743895853013,-500.0,0.0003041,2]
[357210497,1743895853023,-500.0,0.0003041,2]
[357210498,1743895853032,-516.93911319,0.0003041,2]
[357210499,1743895853042,-500.0,0.0003041,2]
[357210500,1743895853052,-500.0,0.0003041,2]
[357210501,1743895853062,-500.0,0.0003041,2]
[357210502,1743895853072,-587.44971721,0.0003041,2]
[357210503,1743895853082,-246.89620376,0.0003041,2]
[357210504,1743895853091,-500.0,0.0003041,2]
[357210505,1743895853101,-541.66423419,0.0003041,2]
[357210506,1743895853111,-500.0,0.0003041,2]
[357210507,1743895853121,-500.0,0.0003041,2]
[357210508,1743895853130,-500.0,0.0003041,2]
[357210509,1743895853140,-555.02303931,0.0003041,2]
[357210510,1743895853149,-500.0,0.0003041,2]
[357210511,1743895853158,-500.0,0.0003041,2]
[357210512,1743895853168,-301.29139777,0.0003041,2]
[357210513,1743895853177,-500.0,0.0003041,2]
[357210514,1743895853187,-500.0,0.0003041,2]
[357210515,1743895853197,-523.17599638,0.00030569,2]
[357210516,1743895853206,-500.0,0.00030673,2]
[357210517,1743895853215,-500.0,0.00030673,2]
[357210518,1743895853225,-1911.58601764,0.00030675,2]
[357210519,1743895853234,-500.0,0.00030683,2]
[357210520,1743895853243,-500.0,0.00030683,2]
[357210521,1743895853252,-500.0,0.00030683,2]
[357210522,1743895853262,-518.1781737,0.00030683,2]
[357210523,1743895853272,-375.32966312,0.00030683,2]
[357210524,1743895853281,-200.0,0.00030683,2]
[357210525,1743895853290,-525.36671879,0.00030683,2]
[357210526,1743895853300,-500.0,0.00030683,2]
[357210527,1743895853310,-500.0,0.00030683,2]
[357210528,1743895853319,-247.1317422,0.00030683,2]
[357210529,1743895853329,-500.0,0.00030683,2]
[357210530,1743895853338,-510.12335559,0.00030683,2]
[357210531,1743895853347,-510.00650528,0.00030683,2]
[357210532,1743895853357,-500.0,0.00030683,2]
[357210533,1743895853367,-406.27996736,0.00030683,2]
[357210534,1743895853377,-530.02311964,0.00030683,2]
[357210535,1743895853386,-506.29601165,0.00030683,2]
[357210536,1743895853396,-522.99134473,0.00030683,2]
[357210537,1743895853406,-500.0,0.00030683,2]
[357210538,1743895853416,-532.72464301,0.00030683,2]
[357210539,1743895853426,-541.1598535,0.00030683,2]
[357210540,1743895853436,-544.09042836,0.00030683,2]
[357210541,1743895853446,-540.99133605,0.00030683,2]
[357210542,1743895853456,-539.46779292,0.00030683,2]
[357210543,1743895853469,-500.0,0.00030683,2]
[357210544,1743895853479,-532.31396748,0.00030683,2]
[357210545,1743895853489,-500.0,0.00030683,2]
[357210546,1743895853499,-545.98252909,0.00030683,2]
[357210547,1743895853510,-524.67731589,0.00030683,2]
[357210548,1743895853520,-524.75009786,0.00030683,2]